bitfinex/quotes_ETHUSD_20220220
["timestamp","ask_amount","ask_price","bid_price","bid_amount"]
[1645392230760,0.1888,2599.5,2598.5,3.881777]
[1645392230956,0.1888,2599.5,2598.7,0.0084892]
[1645392231155,0.0102793,2599.6,2598.8,0.462]
[1645392231362,5.15,2601.7,2598.8,0.462]
[1645392231363,0.1923,2600.7,2599.6,4.5]
[1645392231557,0.135036,2601.4,2599.8,0.8419142]
[1645392231558,0.25154172,2600.4,2599.8,0.8419142]
[1645392231758,0.00154172,2600.4,2599.9,0.463977]
[1645392232356,0.00154172,2600.4,2600.3,1.15717854]
[1645392232562,0.00154172,2600.4,2600.1,1.08335862]
[1645392232563,1.32233747,2600.2,2600.1,1.08335862]
[1645392232855,1.32233747,2600.2,2600.1,1.08533562]
[1645392233055,1.32233747,2600.2,2600.1,1.08335862]
[1645392235412,1.32233747,2600.2,2599.9,0.001977]
[1645392235413,1.62233747,2600.2,2599.9,0.001977]
[1645392235618,1.62233747,2600.2,2599.2,0.462]
[1645392235619,3.5,2600.1,2599.2,0.462]
[1645392235812,0.1923,2600.1,2599.7,0.02212013]
[1645392236110,3.6923,2600.1,2599.7,0.02212013]
[1645392236515,1.00694078,2600.0,2599.7,0.02212013]
[1645392236812,0.1923,2599.9,2599.2,0.001977]
[1645392237011,3.5,2599.9,2599.6,0.02212097]
[1645392237210,1.00694078,2600.0,2599.6,0.02212097]
[1645392237661,0.1923,2599.9,2599.6,0.02212097]
[1645392238053,0.1923,2599.9,2599.1,0.98883684]
[1645392238054,1.63418989,2599.8,2599.2,0.001977]
[1645392238257,1.04074217,2599.6,2599.5,0.02300672]
[1645392238457,1.34074217,2599.6,2599.5,6.72e-06]
[1645392238656,2.12648989,2599.6,2599.5,6.72e-06]
[1645392239254,0.0008,2599.4,2598.9,0.001977]
[1645392239653,2.12728989,2599.4,2598.9,0.001977]
[1645392239854,1.63418989,2599.3,2598.9,0.001977]
[1645392240655,1.63418989,2599.3,2599.0,0.00082534]
[1645392241505,1.63418989,2599.3,2598.9,0.001977]
[1645392241700,0.98872779,2599.2,2598.9,0.001977]
[1645392241899,0.98872779,2599.2,2599.0,0.00082533]
[1645392241900,1.63418989,2599.1,2599.0,0.00082533]
[1645392242702,9.5,2599.0,2598.9,0.00105067]
[1645392242901,1.63418989,2599.0,2598.8,0.721]
[1645392243106,1.67246425,2599.2,2598.9,0.00082536]
[1645392243301,1.63440466,2599.1,2598.9,0.00082536]
[1645392243499,1.63440466,2599.1,2598.8,0.00196724]
[1645392243702,1.99329004,2598.5,2598.0,0.39517848]
[1645392243904,1.99329004,2598.5,2598.1,0.00195849]
[1645392244303,1.99329004,2598.5,2598.0,0.34713697]
[1645392244503,1.63446441,2598.4,2598.1,0.00195038]
[1645392244703,1.99329004,2598.5,2598.3,1.01519429]
[1645392245152,1.63443736,2598.4,2598.3,1.01519429]
[1645392246551,1.63443736,2598.4,2598.1,0.00747093]
[1645392246753,1.63443736,2598.4,2598.1,0.00552055]
[1645392246955,1.63443736,2598.4,2598.1,0.00747093]
[1645392247352,5.13443736,2598.4,2598.1,0.00747093]
[1645392247564,1.63443736,2598.3,2597.5,0.00195038]
[1645392247754,1.63443736,2598.3,2597.3,0.462]
[1645392247755,4.46311,2598.2,2597.3,0.462]
[1645392247954,1.63443736,2598.1,2598.0,0.00552076]
[1645392248155,5.13443736,2598.1,2598.0,0.00552076]
[1645392248656,5.13443736,2598.1,2597.0,0.462]
[1645392248657,5.13443736,2598.1,2597.4,1.02844008]
[1645392248908,2.6139783,2598.0,2597.5,0.00195038]
[1645392249108,1.63443736,2597.9,2597.8,0.00552067]
[1645392249511,2.51047382,2598.4,2597.8,0.00552067]
[1645392249711,0.68373646,2598.2,2597.8,0.00552067]
[1645392249912,3.5,2598.1,2597.5,0.00195038]
[1645392250109,1.63443736,2598.0,2597.5,0.00195038]
[1645392250310,1.63443736,2597.9,2597.8,0.00552056]
[1645392250510,0.95030699,2598.1,2597.8,0.00552056]
[1645392250511,1.63443736,2598.0,2597.8,0.00552056]
[1645392250911,1.63443736,2598.0,2597.4,0.99010707]
[1645392251116,1.63443736,2598.0,2597.5,0.00194209]
[1645392251315,1.63443736,2598.0,2597.1,0.00194209]
[1645392251524,5.43443736,2598.0,2597.6,0.00552099]
[1645392251819,1.53443736,2597.9,2597.6,0.00552099]
[1645392252214,3.5,2598.0,2597.6,0.00552099]
[1645392252416,3.6923,2598.0,2597.4,0.00194209]
[1645392252667,3.6923,2598.0,2597.1,0.00194209]
[1645392252860,3.66976777,2598.0,2597.1,0.00194209]
[1645392253361,0.00285881,2598.1,2597.1,3.50194209]
[1645392253561,2.13149001,2598.5,2597.3,0.007]
[1645392253767,0.01034598,2598.0,2597.4,5.3]
[1645392253962,0.01034598,2598.0,2597.7,5.0]
[1645392254162,0.01034598,2598.0,2597.9,5.0]
[1645392254364,0.01034598,2598.0,2597.7,0.3]
[1645392254365,0.00521814,2598.0,2597.8,7.18496172]
[1645392254560,0.00521814,2598.0,2597.9,5.0]
[1645392254760,0.00521814,2598.0,2597.9,5.462]
[1645392255366,0.25,2598.9,2598.1,21.5]
[1645392255666,0.0008,2599.4,2598.8,10.776]
[1645392255865,0.0008,2599.4,2599.3,5.8739063]
[1645392256064,0.0008,2599.4,2599.3,6.1739063]
[1645392256513,0.0503,2599.4,2599.3,1.1239063]
[1645392256710,0.25,2600.1,2599.4,15.0]
[1645392256915,0.25,2600.1,2600.0,5.0]
[1645392257114,1.32233747,2600.2,2600.0,0.462]
[1645392257515,1.32233747,2600.2,2600.0,5.462]
[1645392257713,0.68373646,2601.1,2600.0,5.462]
[1645392257714,0.68373646,2601.2,2600.1,9.5539054]
[1645392257921,1.11531559,2601.4,2601.1,5.0]
[1645392257922,0.01142972,2601.4,2601.1,5.0]
[1645392258124,0.01142972,2601.4,2601.2,0.462]
[1645392258316,0.01142972,2601.4,2601.3,0.462]
[1645392258513,0.70048229,2601.1,2600.7,5.0]
[1645392258713,0.70048229,2601.1,2600.6,6.238]
[1645392258917,0.70048229,2601.1,2601.0,0.96199588]
[1645392259116,0.70048229,2601.1,2601.0,1.42399588]
[1645392259319,0.70048229,2601.1,2601.0,1.72399588]
[1645392260867,0.70048229,2601.1,2601.0,1.42399588]
[1645392261068,0.70048229,2601.1,2601.0,1.72399588]
[1645392262874,0.70048229,2601.1,2601.0,10.22399588]
[1645392262875,8.229e-05,2601.1,2601.0,10.22399588]
[1645392263081,0.2403,2601.7,2601.1,21.5]
[1645392263374,0.17176893,2601.7,2601.3,5.0]
[1645392263573,0.01217205,2601.6,2601.4,3.912]
[1645392263774,0.25,2602.1,2601.6,11.5]
[1645392264018,1.74157332,2602.3,2601.7,3.962]
[1645392264418,0.68373646,2602.9,2601.7,3.962]
[1645392264617,1.74157332,2602.3,2601.7,3.962]
[1645392265013,0.99630284,2603.0,2602.2,1.05267771]
[1645392265215,0.99630284,2603.0,2602.3,0.462]
[1645392265421,1.64157332,2602.4,2602.3,0.462]
[1645392265616,1.64157332,2602.4,2601.9,0.462]
[1645392265815,1.64157332,2602.0,2601.9,0.462]
[1645392266017,1.64157332,2602.3,2601.9,0.462]
[1645392266216,1.64157332,2602.1,2601.9,0.462]
[1645392266419,8.50510349,2602.6,2601.9,1.55888729]
[1645392266621,1.64157332,2602.3,2601.9,1.55888729]
[1645392266815,1.64157332,2602.3,2601.9,1.45888729]
[1645392267013,0.192,2602.7,2601.9,1.45888729]
[1645392267014,0.68373646,2603.0,2601.9,1.45888729]
[1645392267218,0.0030669,2602.4,2601.9,0.362]
[1645392267417,1.64157332,2602.2,2601.9,0.362]
[1645392268463,1.64464024,2602.2,2601.9,1.4844961]
[1645392269271,1.64157332,2602.2,2601.9,1.7844961]
[1645392269468,1.64157332,2602.2,2601.9,5.14292278]
[1645392269469,0.00306692,2602.2,2601.9,5.14292278]
[1645392270064,0.00306692,2602.2,2601.9,5.04292278]
[1645392270266,1.60690608,2603.1,2602.0,23.89309392]
[1645392270477,0.192,2603.5,2602.1,5.88373]
[1645392270668,7.38,2603.9,2602.6,3.39309392]
[1645392270868,7.38,2603.9,2602.3,0.9609]
[1645392270869,7.38,2603.9,2602.7,0.462]
[1645392271066,7.38,2603.9,2602.8,0.462]
[1645392271268,1.60690608,2603.7,2602.8,0.462]
[1645392271514,0.05,2603.6,2603.5,1.1670822]
[1645392271719,1.65690608,2603.6,2603.5,0.462]
[1645392271915,3.28885659,2603.6,2603.5,0.462]
[1645392272112,0.45389917,2603.4,2602.4,3.5]
[1645392272312,0.45389917,2603.4,2602.6,3.5]
[1645392272313,1.60690608,2603.2,2602.6,3.5]
[1645392272513,7.83389917,2603.4,2602.7,0.462]
[1645392272712,1.60690608,2602.8,2602.6,3.5]
[1645392272913,0.60690608,2602.8,2602.6,3.5]
[1645392273115,0.60690608,2602.7,2602.6,3.5]
[1645392273512,2.14984606,2602.3,2601.5,0.192]
[1645392273711,2.14984606,2602.3,2601.4,4.80444]
[1645392273712,2.14984606,2602.3,2602.1,0.92479756]
[1645392273913,2.14984606,2602.3,2602.2,0.462]
[1645392275563,2.75675214,2602.3,2602.2,0.462]
[1645392275961,2.14984606,2602.3,2602.2,0.462]
[1645392276260,2.75675214,2602.3,2602.2,0.462]
[1645392276661,6.25675214,2602.3,2602.2,0.462]
[1645392276959,2.75675214,2602.3,2602.2,0.462]
[1645392277564,2.14984606,2602.3,2602.2,0.462]
[1645392278168,3.61563736,2602.3,2602.2,0.462]
[1645392278461,2.75675214,2602.3,2602.2,0.462]
[1645392279317,7.33708434,2602.3,2602.1,0.00085072]
[1645392279516,5.13291645,2602.2,2602.1,5.072e-05]
[1645392279722,5.43291645,2602.2,2602.1,5.072e-05]
[1645392280014,5.38291645,2602.2,2601.0,0.462]
[1645392280212,0.60690608,2601.2,2601.0,0.462]
[1645392283461,0.12600284,2600.3,2600.2,4.39309392]
[1645392283660,0.12600284,2600.3,2600.2,5.33514248]
[1645392284664,0.12600284,2600.3,2600.2,0.94204856]
[1645392284864,0.12600284,2600.3,2600.2,1.40404856]
[1645392285563,0.12600284,2600.3,2600.2,0.462]
[1645392285770,0.12600284,2600.3,2600.1,0.00084937]
[1645392286161,0.73290892,2600.3,2599.8,0.462]
[1645392286420,1.42610892,2600.3,2600.1,0.00084937]
[1645392286812,3.5,2600.2,2600.1,4.937e-05]
[1645392287014,0.1922,2600.2,2600.1,4.937e-05]
[1645392287411,0.1922,2600.2,2599.3,0.00194209]
[1645392287810,0.1922,2600.2,2598.8,4.39309392]
[1645392287811,0.60690608,2600.2,2599.4,0.462]
[1645392288009,0.60690608,2600.2,2599.5,0.462]
[1645392288412,0.81920284,2600.3,2599.8,1.01099506]
[1645392288809,0.60690608,2599.9,2599.8,1.01099506]
[1645392289811,0.60690608,2599.9,2599.5,0.462]
[1645392290012,0.60690608,2599.6,2599.5,0.462]
[1645392290267,0.60690608,2599.6,2599.3,0.00108777]
[1645392290563,0.60690608,2599.5,2599.3,0.00108777]
[1645392290960,0.60690608,2599.5,2599.1,0.46802153]
[1645392290961,0.60690608,2599.5,2599.2,0.84078839]
[1645392292564,4.10690608,2600.0,2599.2,0.84078839]
[1645392292767,0.60690608,2600.0,2599.2,0.84078839]
[1645392292963,0.60690608,2599.8,2599.2,0.84078839]
[1645392293163,3.50924934,2600.2,2599.2,0.84078839]
[1645392293164,0.60690608,2599.3,2599.2,0.84078839]
[1645392293362,0.60690608,2600.0,2599.2,0.84078839]
[1645392293564,0.00924934,2600.2,2599.7,1.09698569]
[1645392294220,0.00924934,2600.2,2599.7,1.55898569]
[1645392294413,0.60690608,2600.1,2599.7,1.55898569]
[1645392294814,0.00924934,2600.2,2599.8,0.00084747]
[1645392295013,0.00924934,2600.2,2599.9,0.462]
[1645392296014,0.00924934,2600.2,2600.1,5.34197721]
[1645392296216,0.00924934,2600.2,2600.1,5.80397721]
[1645392296622,0.12845218,2600.3,2600.2,18.0]
[1645392296816,0.25,2600.9,2600.3,10.0]
[1645392297015,0.60690608,2601.5,2600.4,0.462]
[1645392297216,1.63312735,2601.4,2600.5,3.5]
[1645392297418,0.60690608,2601.5,2600.8,0.96149]
[1645392297656,0.60690608,2601.5,2601.0,1.14788516]
[1645392297858,0.60690608,2601.5,2600.9,0.462]
[1645392297859,0.60690608,2601.5,2601.4,1.07183501]
[1645392298062,1.51747004,2601.3,2600.9,3.8]
[1645392298261,1.51747004,2601.3,2601.2,1.08286027]
[1645392298459,1.51747004,2601.3,2601.2,1.54486027]
[1645392298662,3.15049892,2601.3,2601.2,1.54486027]
[1645392300764,1.5054766,2601.3,2601.2,5.04486027]
[1645392300966,0.60690608,2602.1,2601.3,0.96127]
[1645392301165,0.60690608,2602.1,2601.4,3.962]
[1645392301810,0.57246938,2602.1,2601.4,3.962]
[1645392302312,9.52984606,2602.3,2601.6,0.96113]
[1645392302510,2.14984606,2602.3,2601.7,3.962]
[1645392302711,2.14984606,2602.3,2601.7,0.462]
[1645392302909,2.83358252,2602.3,2601.7,0.462]
[1645392303119,2.14984606,2602.3,2601.7,0.462]
[1645392303510,2.14984606,2602.3,2601.5,0.64290421]
[1645392303711,2.14984606,2602.3,2601.5,0.60490421]
[1645392304710,2.14984606,2602.3,2601.6,0.96113]
[1645392304711,0.57246938,2602.1,2601.6,0.96113]
[1645392306063,2.14984606,2602.3,2601.6,0.96113]
[1645392306263,2.14984606,2602.3,2601.7,0.462]
[1645392306464,0.57246938,2602.2,2601.7,0.462]
[1645392306666,0.0089885,2602.0,2601.7,0.462]
[1645392307465,0.0089885,2602.0,2601.7,0.45048832]
[1645392308065,0.0089885,2602.0,2601.7,3.95048832]
[1645392308269,0.0089885,2602.0,2601.7,0.45048832]
[1645392308565,0.0089885,2602.0,2601.7,3.95048832]
[1645392308765,0.0089885,2602.0,2601.7,0.45048832]
[1645392309402,0.0089885,2602.0,2601.7,3.95048832]
[1645392309606,0.0089885,2602.0,2601.7,0.45048832]
[1645392310704,0.57246938,2601.9,2601.7,0.45048832]
[1645392312104,0.0089885,2602.0,2601.7,0.45048832]
[1645392312504,0.58141306,2602.2,2601.7,0.45048832]
[1645392312766,0.58141306,2602.2,2601.7,1.41165832]
[1645392313166,0.58141306,2602.2,2601.7,1.71165832]
[1645392313366,0.58141306,2602.2,2601.7,0.75048832]
[1645392314568,0.58141306,2602.2,2601.8,3.5]
[1645392314768,0.58141306,2602.2,2601.9,0.462]
[1645392314967,0.00894368,2602.2,2601.9,0.462]
[1645392317013,0.58141306,2602.2,2601.9,0.462]
[1645392317414,0.57246938,2602.1,2601.9,0.462]
[1645392317615,0.57246938,2602.1,2601.5,0.462]
[1645392317815,0.00894368,2602.2,2601.5,0.462]
[1645392317816,0.57246938,2601.7,2601.5,0.462]
[1645392318514,0.00894368,2602.2,2601.5,0.462]
[1645392318718,0.57246938,2602.1,2601.5,0.462]
[1645392320768,0.57246938,2602.1,2601.5,1.42326]
[1645392321167,0.57246938,2602.1,2601.5,0.462]
[1645392321770,1.63273642,2602.0,2601.5,0.462]
[1645392321972,0.57246938,2601.6,2601.5,0.462]
[1645392322170,0.57246938,2601.8,2601.5,0.462]
[1645392322371,0.57246938,2602.0,2601.5,0.462]
[1645392322574,1.63279757,2601.9,2601.5,0.462]
[1645392323169,0.57246938,2601.6,2601.5,0.462]
[1645392323574,0.57246938,2601.6,2600.9,0.00084711]
[1645392323772,0.57246938,2601.6,2600.9,3.50084711]
[1645392324022,0.57246938,2601.6,2600.9,0.00084711]
[1645392324220,0.57246938,2601.6,2601.0,0.462]
[1645392324415,0.00894525,2602.0,2601.0,0.462]
[1645392324617,0.57246938,2601.8,2601.0,0.462]
[1645392324817,0.538,2601.0,2600.9,0.96230711]
[1645392325217,0.25,2601.8,2600.9,1.26230711]
[1645392325420,0.00894525,2602.0,2601.1,1.9225]
[1645392325718,0.00894525,2602.0,2601.4,0.9612]
[1645392325917,0.00894525,2602.0,2601.5,0.462]
[1645392326318,0.00894525,2602.0,2601.6,0.10318021]
[1645392326526,0.00894525,2602.0,2601.7,0.462]
[1645392326818,0.00894212,2601.8,2601.7,0.462]
[1645392329561,0.5814115,2601.8,2601.7,0.462]
[1645392329964,2.21422887,2601.8,2601.7,0.462]
[1645392330159,0.5814115,2601.8,2601.7,0.462]
[1645392330360,0.00894212,2601.8,2601.7,0.462]
[1645392331062,0.3314115,2602.1,2601.7,0.462]
[1645392331922,0.00894212,2601.8,2601.7,0.462]
[1645392332821,0.00894212,2601.8,2601.1,0.10318021]
[1645392333020,0.00894212,2601.8,2601.2,0.554]
[1645392333720,0.00894212,2601.8,2601.3,1.92258]
[1645392333919,0.00894212,2601.8,2601.4,0.554]
[1645392334120,0.00894212,2601.8,2601.4,0.854]
[1645392336276,0.00894212,2601.8,2601.4,7.778]
[1645392336977,1.63268736,2601.7,2601.4,7.778]
[1645392337473,1.63268736,2601.6,2601.4,7.778]
[1645392337676,1.63272234,2601.5,2601.4,7.778]
[1645392337874,1.63272234,2601.9,2601.4,7.778]
[1645392339412,0.3314115,2601.8,2601.4,7.778]
[1645392339618,1.63272234,2601.7,2601.4,7.778]
[1645392340013,1.63272234,2601.6,2601.4,7.778]
[1645392340315,1.63272234,2601.5,2601.4,7.778]
[1645392340713,0.68373646,2601.9,2601.4,7.778]
[1645392340915,0.3314115,2601.5,2601.4,0.3]
[1645392341121,0.3314115,2601.5,2600.9,0.00084711]
[1645392341122,15.0,2601.4,2600.9,0.00084711]
[1645392341322,0.3314115,2601.0,2600.7,3.5]
[1645392341516,0.3314115,2600.8,2600.7,3.5]
[1645392341818,1.04570224,2600.8,2599.6,0.00339018]
[1645392342122,0.3314115,2600.0,2599.7,0.10318021]
[1645392342315,1.63272234,2599.9,2599.7,0.10318021]
[1645392342761,1.63272234,2599.9,2599.7,0.10402771]
[1645392343259,1.63272234,2599.9,2599.7,0.0008475]
[1645392343564,1.663695,2599.4,2599.3,0.5573905]
[1645392343762,1.663695,2599.4,2599.3,0.554]
[1645392344064,1.663695,2599.4,2599.3,0.55503201]
[1645392344263,1.663695,2599.4,2599.3,0.65821222]
[1645392344664,1.663695,2599.4,2599.3,0.55503201]
[1645392344867,1.663695,2599.4,2598.8,0.007]
[1645392344868,6.79770609,2599.4,2598.8,0.007]
[1645392345165,1.63409549,2599.3,2598.8,0.007]
[1645392345362,0.3314115,2599.1,2598.8,0.007]
[1645392345962,0.3314115,2599.1,2598.9,0.10318021]
[1645392346162,1.9951065,2599.4,2598.9,0.10318021]
[1645392346436,1.663695,2599.4,2598.9,0.10318021]
[1645392346617,1.663695,2599.4,2598.9,0.65718021]
[1645392347621,0.3314115,2599.3,2599.0,0.00084561]
[1645392347818,0.3314115,2599.1,2599.0,0.00084561]
[1645392348017,1.663695,2599.4,2599.0,0.00084561]
[1645392348619,0.3314115,2599.3,2598.9,0.554]
[1645392348819,0.3314115,2599.3,2599.1,0.00084559]
[1645392349018,1.663695,2599.4,2599.1,0.00084559]
[1645392349221,1.9451065,2599.4,2599.1,0.00084559]
[1645392349419,1.663695,2599.4,2599.1,0.00084559]
[1645392349823,1.663695,2599.4,2598.9,0.554]
[1645392350024,1.663695,2599.4,2599.1,0.00084557]
[1645392350477,1.9451065,2599.4,2599.1,0.00084557]
[1645392350882,1.9451065,2599.4,2598.9,0.854]
[1645392351084,1.663695,2599.4,2598.9,1.81615]
[1645392351480,1.663695,2599.4,2598.9,0.854]
[1645392352082,0.00862034,2599.1,2598.9,0.854]
[1645392352291,0.00862034,2599.1,2598.9,3.74044]
[1645392352485,0.00862034,2599.1,2599.0,0.00084561]
[1645392353385,0.00862034,2599.1,2598.9,0.854]
[1645392353386,0.29003184,2599.1,2598.9,0.854]
[1645392353583,0.29003184,2599.1,2598.9,0.00084564]
[1645392354640,0.29003184,2599.1,2598.8,0.41018021]
[1645392354840,0.29003184,2599.1,2598.9,0.00084566]
[1645392355845,0.26953132,2599.0,2598.8,0.307]
[1645392356043,0.26953132,2599.0,2598.9,0.00084566]
[1645392357047,0.26953132,2599.0,2598.8,0.007]
[1645392357250,0.26953132,2599.0,2598.8,0.00784567]
[1645392357451,1.45063717,2599.0,2598.8,0.00784567]
[1645392358063,0.26953132,2599.0,2598.8,0.00784567]
[1645392358264,0.26953132,2599.0,2598.8,0.007]
[1645392358565,0.26953132,2599.0,2598.8,0.00784569]
[1645392359366,0.26953132,2599.0,2598.8,0.007]
[1645392359367,0.89304844,2598.9,2598.8,0.007]
[1645392359564,4.39304844,2598.9,2598.8,0.00784569]
[1645392360566,4.39304844,2598.9,2598.8,0.007]
[1645392362916,0.01544052,2598.7,2597.8,0.00194209]
[1645392363116,0.26953132,2597.9,2597.8,0.00194209]
[1645392363314,0.26953132,2597.9,2597.7,0.02115059]
[1645392363719,0.26953132,2597.9,2597.5,0.00194209]
[1645392363720,0.24953132,2597.9,2597.5,0.00194209]
[1645392363919,0.24953132,2597.9,2597.3,0.561]
[1645392363920,3.5,2598.3,2597.3,0.561]
[1645392364115,0.24953132,2597.5,2597.4,0.00194209]
[1645392364316,0.24953132,2597.8,2597.3,0.561]
[1645392364516,3.5,2598.3,2597.4,0.00194209]
[1645392364915,0.24953132,2597.5,2597.4,0.00194209]
[1645392365166,0.24953132,2597.7,2597.3,0.561]
[1645392365369,3.5,2598.3,2597.4,0.00194209]
[1645392365568,1.00313949,2598.4,2597.3,0.007]
[1645392365569,0.24953132,2597.5,2597.3,0.007]
[1645392365769,0.24953132,2597.5,2597.4,0.00194209]
[1645392365967,0.24953132,2597.5,2597.3,0.007]
[1645392366166,0.14953132,2597.5,2597.3,0.007]
[1645392368569,3.64953132,2597.5,2597.3,0.007]
[1645392369017,0.14953132,2597.5,2597.3,0.007]
[1645392369416,3.64953132,2597.5,2597.3,0.007]
[1645392369817,0.14953132,2597.5,2597.3,0.007]
[1645392370218,0.14953132,2597.5,2596.3,0.51294209]
[1645392370416,3.5,2597.5,2597.1,0.007796]
[1645392370621,0.14953132,2597.2,2597.1,0.007796]
[1645392371417,0.14953132,2597.2,2596.7,0.00193397]
[1645392371623,0.14953132,2597.2,2596.9,0.00779657]
[1645392372672,0.14953132,2597.1,2596.7,0.00193397]
[1645392372874,0.14953132,2597.1,2596.8,0.01978307]
[1645392373285,0.008777,2597.4,2596.9,1.57515338]
[1645392373475,0.008777,2597.4,2597.0,8.35240265]
[1645392373685,0.008777,2597.4,2597.1,0.554]
[1645392373878,0.008777,2597.4,2597.1,0.55593397]
[1645392374075,0.008777,2597.4,2597.1,5.40640265]
[1645392374481,0.008777,2597.4,2597.1,12.33040265]
[1645392374678,0.00324751,2597.8,2597.4,23.4252]
[1645392374980,0.10270183,2598.4,2597.5,0.91434416]
[1645392375173,0.10270183,2598.4,2597.5,7.84027813]
[1645392375376,0.10270183,2598.4,2597.6,3.50193397]
[1645392375579,0.10270183,2598.4,2597.8,0.0589116]
[1645392375780,0.10270183,2598.4,2597.9,0.554]
[1645392375976,0.10270183,2598.4,2598.0,0.00193397]
[1645392376177,0.10270183,2598.4,2598.1,0.554]
[1645392376433,0.00293016,2598.3,2598.1,0.554]
[1645392377419,0.10270183,2598.4,2598.1,0.554]
[1645392377621,0.00293016,2598.3,2598.1,0.554]
[1645392378025,0.00293016,2598.3,2598.2,3.5]
[1645392378223,0.01544052,2598.7,2598.3,21.5]
[1645392378427,0.01544052,2598.7,2598.5,6.924]
[1645392378621,0.01544052,2598.7,2598.6,4.054]
[1645392379021,0.01544052,2598.7,2598.6,0.554]
[1645392379228,0.01544052,2598.7,2598.2,0.00193397]
[1645392379425,0.10270183,2598.3,2598.1,0.06034416]
[1645392379625,0.10270183,2598.3,2597.8,0.00193397]
[1645392379826,0.10270183,2597.9,2597.4,0.55593397]
[1645392380025,0.13949592,2598.0,2597.4,0.55593397]
[1645392380026,0.05270183,2597.6,2597.4,0.554]
[1645392380270,0.05270183,2597.6,2597.5,0.00193397]
[1645392380470,0.05270183,2597.6,2597.4,0.554]
[1645392380671,0.05270183,2597.6,2597.2,0.00193397]
[1645392380873,0.05270183,2597.3,2597.1,3.5]
[1645392381073,0.05270183,2597.3,2596.8,0.00193397]
[1645392381269,0.05270183,2597.0,2596.5,0.554]
[1645392381468,0.05270183,2597.0,2596.6,0.00193397]
[1645392381670,0.05270183,2597.0,2596.7,1.08006498]
[1645392382070,0.25,2597.6,2596.7,1.08006498]
[1645392382268,0.05270183,2597.0,2596.8,0.00193397]
[1645392382467,0.05270183,2597.0,2596.7,1.33280555]
[1645392383468,0.8,2597.3,2596.7,1.33199895]
[1645392383674,0.8,2597.3,2596.8,0.00191886]
[1645392383924,0.8,2597.3,2596.7,1.32896783]
[1645392383925,0.85270183,2597.3,2596.7,1.32896783]
[1645392384116,0.80270183,2597.3,2596.8,0.0019102]
[1645392384317,0.75,2597.3,2596.8,0.0019102]
[1645392384516,0.05270183,2597.1,2596.8,0.0019102]
[1645392384716,0.00270183,2597.1,2596.7,1.32816123]
[1645392385019,0.75,2597.3,2596.9,0.00080654]
[1645392385816,0.75,2597.3,2596.8,0.0019102]
[1645392386018,0.75,2597.3,2597.0,0.00080653]
[1645392387018,0.75,2597.3,2596.8,0.5559102]
[1645392387418,0.75,2597.3,2597.0,0.00080651]
[1645392388169,0.00849962,2597.2,2596.8,0.0019102]
[1645392388372,0.00849962,2597.2,2596.7,1.03199895]
[1645392388672,0.00849962,2597.2,2597.0,0.00080651]
[1645392389271,0.00849962,2597.2,2596.7,1.30487943]
[1645392389473,0.00849962,2597.2,2596.8,0.554]
[1645392389873,0.00849962,2597.2,2597.0,0.96277]
[1645392390076,0.00849962,2597.2,2597.1,0.554]
[1645392390473,0.75,2597.3,2597.1,0.554]
[1645392390474,0.70849962,2597.3,2597.1,0.554]
[1645392390675,0.70849962,2597.3,2596.8,0.5559016]
[1645392390875,0.70849962,2597.3,2596.8,0.56157286]
[1645392391920,0.70849962,2597.3,2596.8,0.5559016]
[1645392392121,0.70849962,2597.3,2596.8,0.56157288]
[1645392393022,0.70849962,2597.3,2596.8,0.5559016]
[1645392393023,0.00849806,2597.1,2596.8,0.5559016]
[1645392393419,0.00849806,2597.1,2596.8,0.57475544]
[1645392394221,0.00849806,2597.1,2596.8,0.5559016]
[1645392394422,0.01166339,2597.1,2596.8,0.5559016]
[1645392395470,0.00849806,2597.1,2596.8,0.5559016]
[1645392395677,0.01166339,2597.1,2596.8,0.5559016]
[1645392396677,0.00849806,2597.1,2596.8,1.5187216]
[1645392396873,0.01166339,2597.1,2596.9,0.96276]
[1645392397272,0.01166339,2597.1,2597.0,0.3]
[1645392397674,0.01166339,2597.1,2596.8,0.8559016]
[1645392397874,0.00849806,2597.1,2596.8,0.8559016]
[1645392398278,0.00849806,2597.1,2596.8,0.87475544]
[1645392399117,0.00849806,2597.1,2596.8,0.8559016]
[1645392399320,0.01166339,2597.1,2596.8,0.8559016]
[1645392399915,0.01166339,2597.1,2596.8,1.8187216]
[1645392400316,0.00849806,2597.1,2596.8,1.8187216]
[1645392400514,0.01166339,2597.1,2596.8,1.81682]
[1645392400915,0.7178195,2597.3,2596.8,1.81682]
[1645392401116,0.7178195,2597.3,2596.9,0.0019016]
[1645392401315,0.7178195,2597.3,2596.9,0.5559016]
[1645392401715,0.0082309,2597.0,2596.9,0.5559016]
[1645392401923,0.0082309,2597.0,2596.9,0.554]
[1645392403173,0.6760504,2597.3,2597.1,11.58]
[1645392403374,0.6760504,2597.3,2597.2,0.554]
[1645392403577,0.6760504,2597.3,2596.9,0.1944016]
[1645392403778,0.6760504,2597.3,2596.9,0.0019016]
[1645392403974,0.6760504,2597.3,2596.5,0.0019016]
[1645392404174,0.6760504,2597.3,2596.7,0.0057156]
[1645392404774,1.71747664,2597.3,2596.7,0.0057156]
[1645392404973,1.71747664,2597.3,2596.5,0.0019016]
[1645392405175,0.6760504,2597.3,2596.5,0.0019016]
[1645392405375,0.00316521,2597.2,2596.7,0.01905207]
[1645392405776,1.63855906,2597.2,2596.7,0.01905207]
[1645392406177,1.63539385,2597.2,2596.7,0.01905207]
[1645392406428,0.00289423,2597.2,2596.5,0.0019016]
[1645392406622,1.6382767,2597.2,2596.7,0.01905244]
[1645392406824,0.00289423,2597.2,2596.7,0.01905244]
[1645392407422,0.6760504,2597.3,2596.5,0.0019016]
[1645392407626,0.00289423,2597.2,2596.5,0.0019016]
[1645392407824,0.00770812,2597.0,2596.7,0.01905244]
[1645392408625,0.00770812,2597.0,2596.5,0.0019016]
[1645392409027,0.00770812,2597.0,2596.6,0.01905317]
[1645392409833,0.00770812,2597.0,2596.5,0.0019016]
[1645392410029,0.00770812,2597.0,2596.4,0.007]
[1645392410274,0.00770812,2597.0,2596.5,0.01905354]
[1645392410870,0.87678519,2597.0,2596.5,0.01905354]
[1645392411078,4.88560194,2596.9,2596.4,0.007]
[1645392411273,3.25,2596.9,2596.5,0.0190539]